Workbook

Sheet ①所得税・住民税の計算
F1: ← この表示がでたら [コンテンツの有効化] をクリックしてください。
B2: ふるさと納税の限度額を計算するエクセルです。
B3: 緑色の枠内をお使いください | L3: 紫色の枠は限度額計算マクロ用です。入力しないでください。
C4: この色の欄は値を入力してください。該当しない場合は0またはブランクとしてください。
C5: この色は源泉徴収税額を入力してください。0またはブランクでも税額計算には関係ありません。
C6: この色の欄は計算結果なので入力しないでください
C7: 入力が終わったとき、値を変更したときは、100行目にある「限度額を計算する」のボタンを押してください。
C9: (1)給与所得 | L9: (1)給与所得
C10: 支払金額 | E10: 0 | F10: ←源泉徴収票から転記する。 | L10: 支払金額 | N10: =E10 -> 0 | O10: ←源泉徴収票から転記する。
C11: 給与所得控除後の金額 | E11: 0 | F11: ←源泉徴収票から転記する。支払い金額を任意に入力した場合は下記の簡易計算値を入力する。 | L11: 給与所得控除後の金額 | N11: =E11 -> 0 | O11: ←源泉徴収票から転記する。支払い金額を任意に入力した場合は下記の簡易計算値を入力する。
D12: 「給与所得控除後の金額」を簡易計算した値→ | E12: =ROUNDDOWN(F126,-3) -> 0 | M12: 「給与所得控除後の金額」を簡易計算した値→ | N12: =ROUNDDOWN(O126,-3) -> 0
C13: 源泉徴収税額 | E13: 0 | F13: ←源泉徴収票から転記する。わからないときはブランク(税額計算には関係ない) | L13: 源泉徴収税額 | N13: =E13 -> 0 | O13: ←源泉徴収票から転記する。わからないときはブランク(税額計算には関係ない)
C15: (2)不動産所得 | L15: (2)不動産所得
C16: 収入金額 | E16: 0 | L16: 収入金額 | N16: =E16 -> 0
C17: 必要経費 | E17: 0 | L17: 必要経費 | N17: =E17 -> 0
C18: 土地等の取得のための負債の利子 | E18: 0 | F18: ←不動産所得が赤字の場合のみ有効 | L18: 土地等の取得のための負債の利子 | N18: =E18 -> 0 | O18: ←不動産所得が赤字の場合のみ有効
C19: 青色申告特別控除前の不動産所得 | F19: =E16-E17-E18 -> 0 | L19: 青色申告特別控除前の不動産所得 | O19: =N16-N17-N18 -> 0
C20: (3)事業所得 | L20: (3)事業所得
C21: 営業所得収入金額 | E21: 0 | L21: 営業所得収入金額 | N21: =E21 -> 0
C22: 費用(経費) | E22: 0 | L22: 費用(経費) | N22: =E22 -> 0
C23: 事業収入の源泉徴収額 | E23: 0 | L23: 事業収入の源泉徴収額 | N23: =E23 -> 0
C24: 青色申告控除前の事業所得 | F24: =E21-E22 -> 0 | L24: 青色申告控除前の事業所得 | O24: =N21-N22 -> 0
C25: (4)一時所得 https://www.keisan.nta.go.jp/h30yokuaru/cat2/cat21/cat216/cid219.html | L25: (4)一時所得
C26: 一時所得の総収入金額 | E26: 0 | F26: ←保険金、懸賞ギャンブルの配当など | L26: 一時所得の総収入金額 | N26: =E26 -> 0 | O26: ←保険金、懸賞ギャンブルの配当など
C27: 収入を得るために支出した金額 | E27: 0 | F27: ←掛金、交通費、保険料の累計額など | L27: 収入を得るために支出した金額 | N27: =E27 -> 0 | O27: ←掛金、交通費、保険料の累計額など
C28: 源泉徴収額 | E28: 0 | L28: 源泉徴収額 | N28: =E28 -> 0
C29: 特別控除(一時所得は50万円まで免税) | E29: =MIN(500000,E26-E27) -> 0 | L29: 特別控除(一時所得は50万円まで免税) | N29: =MIN(500000,N26-N27) -> 0
C30: 一時所得収入の計算値(課税所得はこの1／２） | E30: =(E26-E27-E29) -> 0 | L30: 一時所得収入の計算値(課税所得はこの1／２） | N30: =(N26-N27-N29) -> 0
C31: 一時所得の所得金額 | F31: =(E26-E27-E29)/2 -> 0 | L31: 一時所得の所得金額 | O31: =(N26-N27-N29)/2 -> 0
C32: (5)雑所得 | L32: (5)雑所得
C33: 年齢 | E33: 50 | F33: 歳 | L33: 年齢 | N33: =E33 -> 50 | O33: 歳
C34: 公的年金等(厚生・国民・企業年金)の金額 | E34: 0 | L34: 公的年金等(厚生・国民・企業年金)の金額 | N34: =E34 -> 0
C35: 公的年金等の源泉徴収額合計 | E35: 0 | L35: 公的年金等の源泉徴収額合計 | N35: =E35 -> 0
C36: 公的年金等控除額 | E36: =IF(E33<65,D141,D146) -> 0 | F36: 年齢に応じて第2表から結果を得る | L36: 公的年金等控除額 | N36: =IF(N33<65,M141,M146) -> 0 | O36: 年齢に応じて第2表から結果を得る
C37: 個人年金(公的年金等以外)の収入金額 | E37: 0 | L37: 個人年金(公的年金等以外)の収入金額 | N37: =E37 -> 0
C38: 個人年金(公的年金等以外)の必要経費 | E38: 0 | L38: 個人年金(公的年金等以外)の必要経費 | N38: =E38 -> 0
C39: その他の雑収入(原稿料など、事業所得以外) | E39: 0 | L39: その他の雑収入(原稿料など、事業所得以外) | N39: =E39 -> 0
C40: その他の雑収入の源泉徴収 | E40: 0 | L40: その他の雑収入の源泉徴収 | N40: =E40 -> 0
C41: 雑所得額 | F41: =E34-E36+E37-E38+E39 -> 0 | L41: 雑所得額 | O41: =N34-N36+N37-N38+N39 -> 0
C42: 青色申告特別控除額(10万円または65万円)＊１） | E42: 0 | F42: 青色申告でない人は0円。青色申告でも赤字の人は0円 | L42: 青色申告特別控除額(10万円または65万円)＊１） | N42: =E42 -> 0 | O42: 青色申告でない人は0円。青色申告でも赤字の人は0円
C43: ＊１）青色申告控除前の「不動産所得＋事業所得」の金額が65万円以下の場合はその金額。
C44: (1)から(5)までの所得の合計金額 | F44: =E11+F19+F24+F31+F41-E42 -> 0 | L44: (1)から(5)までの所得の合計金額 | O44: =N11+O19+O24+O31+O41-N42 -> 0
C46: (6)所得控除 | L46: (6)所得控除
C47: 支払った医療費(医療費控除) | E47: 0 | L47: 支払った医療費(医療費控除) | N47: =E47 -> 0
C48: 上記のうち補てんされる金額 | E48: 0 | L48: 上記のうち補てんされる金額 | N48: =E48 -> 0
C49: 控除されない額 | E49: 100000 | L49: 控除されない額 | N49: 100000
C50: 医療費控除額 | F50: =MAX((E47-E48-E49),0) -> 0 | L50: 医療費控除額 | O50: =MAX((N47-N48-N49),0) -> 0
C52: 支払った社会保険料の合計額 | E52: 0 | F52: =E52 -> 0 | L52: 支払った社会保険料の合計額 | N52: =E52 -> 0 | O52: =N52 -> 0
C54: 新生命保険料の支払額 | E54: 0 | L54: 新生命保険料の支払額 | N54: =E54 -> 0
C55: 旧生命保険料の支払額 | E55: 0 | L55: 旧生命保険料の支払額 | N55: =E55 -> 0
C56: 介護医療保険料の支払額 | E56: 0 | L56: 介護医療保険料の支払額 | N56: =E56 -> 0
C57: 新個人年金保険料の支払額 | E57: 0 | L57: 新個人年金保険料の支払額 | N57: =E57 -> 0
C58: 旧個人年金保険料の支払額 | E58: 0 | L58: 旧個人年金保険料の支払額 | N58: =E58 -> 0
C59: 生命保険類による控除額(第3表) | F59: =E163 -> 0 | L59: 生命保険類による控除額(第3表) | O59: =N163 -> 0
C60: 地震保険の支払額 | E60: 0 | F60: =E60 -> 0 | L60: 地震保険の支払額 | N60: =E60 -> 0 | O60: =N60 -> 0
C61: 納めたふるさと納税額 (赤くなったら納めすぎ) | E61: 0 | F61: =MAX((E61-2000),0) -> 0 | L61: 限度額自動計算時の変数 | N61: 2000 | O61: =MAX((N61-2000),0) -> 0
C63: 基礎控除(人的控除) | F63: 380000 | L63: 基礎控除(人的控除) | O63: 380000
C64: 配偶者控除(人的控除) | F64: 0 | L64: 配偶者控除(人的控除) | O64: =F64 -> 0
C65: その他人的控除(扶養控除など)の 合計額* ) | F65: 0 | L65: その他人的控除(扶養控除など)の 合計額* ) | O65: =F65 -> 0
C66: *) 入力する場合は「③所得控除・調整控除」のシートを参照
C67: 所得税の人的控除の合計額 | F67: =F64+F63+F65 -> 380000 | L67: 所得税の人的控除の合計額 | O67: =O64+O63+O65 -> 380000
C68: 所得控除の合計額 | F68: =SUM(F47:F65) -> 380000 | L68: 所得控除の合計額 | O68: =SUM(O47:O65) -> 380000
C70: (7)所得税の計算 | L70: (7)所得税の計算
C71: 課税所得 | F71: =MAX(ROUNDDOWN((F44-F68),-3),0) -> 0 | L71: 課税所得 | O71: =MAX(ROUNDDOWN((O44-O68),-3),0) -> 0
C72: 所得税の適用税率 | F72: =D214 -> 5 | G72: % | L72: 所得税の適用税率 | O72: =M214 -> 5 | P72: %
C73: 所得税額(復興税無し)第4表 | F73: =G213 -> 0 | L73: 所得税額(復興税無し)第4表 | O73: =P213 -> 0
C74: 復興特別税額(所得税税率計算値額の2.1%) | F74: =ROUNDDOWN(F73*0.021,0) -> 0 | L74: 復興特別税額(所得税税率計算値額の2.1%) | O74: =ROUNDDOWN(O73*0.021,0) -> 0
C75: 所得税と復興特別税の合計 | F75: =ROUNDDOWN((F73+F74),-2) -> 0 | L75: 所得税と復興特別税の合計 | O75: =ROUNDDOWN((O73+O74),-2) -> 0
C76: 所得税の源泉徴収額の合計 | F76: =E13+E23+E28+E35+E40 -> 0 | L76: 所得税の源泉徴収額の合計 | O76: =N13+N23+N28+N35+N40 -> 0
C77: 申告納税額(マイナスは還付される) | F77: =F75-F76 -> 0 | L77: 申告納税額(マイナスは還付される) | O77: =O75-O76 -> 0
C81: (8)住民税の計算 | L81: (8)住民税の計算
C82: 参考https://juuminzei.com/html/keisan.html | L82: 参考https://juuminzei.com/html/keisan.html
C83: https://juuminzei.com/html/koujo.html | L83: https://juuminzei.com/html/koujo.html
C84: 所得の合計額 (所得税の計算から転記) | F84: =F44 -> 0 | L84: 所得の合計額 (所得税の計算から転記) | O84: =O44 -> 0
C85: 医療費控除 | E85: =F50 -> 0 | L85: 医療費控除 | N85: =O50 -> 0
C86: 社会保険料控除 | E86: =F52 -> 0 | L86: 社会保険料控除 | N86: =O52 -> 0
C87: 生命保険料控除 | E87: =E171 -> 0 | L87: 生命保険料控除 | N87: =N171 -> 0
C88: 地震保険控除(支払った保険料×1/2) | E88: =F60/2 -> 0 | L88: 地震保険控除(支払った保険料×1/2) | N88: =O60/2 -> 0
C89: 基礎控除(人的控除) | E89: 330000 | L89: 基礎控除(人的控除) | N89: 330000
C90: 配偶者控除(人的控除) | E90: 0 | F90: 住民税では33万円です。 | L90: 配偶者控除(人的控除) | N90: =E90 -> 0 | O90: 住民税では33万円です。
C91: その他の人的控除((扶養控除など)の合計額 | E91: 0 | F91: 入力する場合は、③所得控除・調整控除シートを参照 | L91: その他の人的控除((扶養控除など)の合計額 | N91: =E91 -> 0 | O91: 入力する場合は、③所得控除・調整控除シートを参照
C92: 住民税の人的控除の合計額 | F92: =E90+E89+E91 -> 330000 | L92: 住民税の人的控除の合計額 | O92: =N90+N89+N91 -> 330000
C93: 住民税の所得控除の合計金額 | E93: =SUM(E85:E91) -> 330000 | L93: 住民税の所得控除の合計金額 | N93: =SUM(N85:N91) -> 330000
C94: 住民税の課税所得 | F94: =MAX((F84-E93),0) -> 0 | L94: 住民税の課税所得 | O94: =MAX((O84-N93),0) -> 0
C95: 住民税課税所得の10% | E95: =ROUNDDOWN((F94*0.1),-2) -> 0 | L95: 住民税課税所得の10% | N95: =ROUNDDOWN((O94*0.1),-2) -> 0
C96: 調整控除 | F96: =C225 -> 0 | L96: 調整控除 | O96: =L225 -> 0
C97: 住民税の所得割額 | F97: =E95-F96 -> 0 | L97: 住民税の所得割額 | O97: =N95-O96 -> 0
C98: 住民税の均等割額(5000円) | F98: 5000 | L98: 住民税の均等割額(5000円) | O98: 5000
C99: 住民税額 | F99: =F97+F98 -> 5000 | L99: 住民税額 | O99: =O97+O98 -> 5000
F100: =ROUNDDOWN(N61,-2) -> 2000 | G100: ←必ずボタンをおしてご利用ください
E102: よく知られている計算式*4) による限度額 → | F102: =ROUNDDOWN(((F97*0.2)/(0.9-(F72/100)*1.021)+2000),-2) -> 2000 | G102: ←ボタンを押さなくても計算されます。過大な値になることがあります*5。
D103: *4) 「よく知られている計算式」とは下記です。
D104: ふるさと納税額<=【（個人住民税所得割額×20%）÷（100%－基本分10％－所得税率×復興税率1.021）＋自己負担2,000円】
D105: ＊5) 課税所得額 (F71セル) が所得税率の変化点付近にいる場合にゲリラ的に発生します。
C107: 実際に納めたふるさと納税額 (E61セル) をもとにした、格税制からの還付額を計算する | L107: ふるさと納税の還付配分(自動計算用)
E108: 所得税分 | F108: =ROUND((E61-2000)*F72*1.021/100,0) -> -102 | G108: ←所得税から控除 | N108: 所得税分 | O108: =ROUND((N61-2000)*O72*1.021/100,0) -> 0
E109: 住民税基本分 | F109: =(E61-2000)*0.1 -> -200 | G109: ←住民税から控除・基本分 | N109: 住民税基本分 | O109: =(N61-2000)*0.1 -> 0
E110: 住民税特例分 (赤くなったら限度額オーバー)(ホ) | F110: =ROUND((E61-2000)*(90-F72*1.021)/100,0) -> -1698 | G110: ←住民税から控除・特例分 | N110: 住民税特例分 (赤字は限度超)(ホ) | O110: =ROUND((N61-2000)*(90-O72*1.021)/100,0) -> 0
E111: 住民税特例分の限度額(ヘ) | F111: =F97*0.2 -> 0 | G111: ←特例分の上限 | N111: 住民税特例分の限度額(ヘ) | O111: =O97*0.2 -> 0
E112: (ホ)と(ヘ)の少ない方 | F112: =MIN(F110,F111) -> -1698 | N112: (ホ)と(ヘ)の少ない方 | O112: =MIN(O110,O111) -> 0
E113: 控除される額 (赤くなったら寄付しすぎ) | F113: =ROUNDDOWN(SUM(F108,F109,F112),-2) -> -2000 | G113: ←限度内なら 「寄付金-2000円」 | N113: 控除される額 (赤字は限度超) | O113: =ROUNDDOWN(SUM(O108,O109,O112),-2) -> 0
C117: ここから下は触らないでください。ここから下は触らないでください。ここから下は触らないでください。ここから下は触らないでください。ここから下は触らないでください。 | L117: ここから下は触らないでください。ここから下は触らないでください。ここから下は触らないでください。ここから下は触らないでください。ここから下は触らないでください。
C119: 第1表 平成29年分～平成30年分 給与等の収入金額 | L119: 第1表 平成29年分～平成30年分 給与等の収入金額
C120: 第1表の出展は https://www.nta.go.jp/taxes/shiraberu/taxanswer/shotoku/1410.htm
C121: 正しく計算ではなく、給与等の収入金額が660万円未満の場合には、収入を4万円ステップにした下記のページ
C122: https://elaws.e-gov.go.jp/search/elawsSearch/elaws_search/lsg0500/detail?lawId=340AC0000000033#5684 にしたがう。
C123: (所得税法別表第五(年末調整等のための給与所得控除後の給与等の金額の表)
C124: 平成30年分をシート2に転記してある
C125: 給与等の収入金額 | E125: 給与所得控除額 | F125: =E10 -> 0 | G125: ←入力(収入金額) | L125: 給与等の収入金額 | N125: 給与所得控除額 | O125: =N10 -> 0 | P125: ←入力(収入金額)
C126: 円を越え | D126: 円以下 | F126: =F125-F127 -> 0 | G126: ←出力(控除後の金額) | L126: 円を越え | M126: 円以下 | O126: =O125-O127 -> 0 | P126: ←出力(控除後の金額)
C127: 0 | D127: 650000 | E127: 収入と同額 | F127: =IF(F125<=650000,F125,F128) -> 0 | G127: ←出力(控除額) | L127: 0 | M127: 650000 | N127: 収入と同額 | O127: =IF(O125<=650000,O125,O128) -> 0 | P127: ←出力(控除額)
C128: 650000 | D128: 1625000 | E128: 650000 | F128: =IF(F125<=1625000,650000,F129) -> 650000 | L128: 650000 | M128: 1625000 | N128: 650000 | O128: =IF(O125<=1625000,650000,O129) -> 650000
C129: 1625000 | D129: 1800000 | E129: 収入*0.4 | F129: =IF(F125<=1800000,F125*0.4,F130) -> 0 | L129: 1625000 | M129: 1800000 | N129: 収入*0.4 | O129: =IF(O125<=1800000,O125*0.4,O130) -> 0
C130: 1800000 | D130: 3600000 | E130: 収入*0.3+180000 | F130: =IF(F125<=3600000,F125*0.3+180000,F131) -> 180000 | L130: 1800000 | M130: 3600000 | N130: 収入*0.3+180000 | O130: =IF(O125<=3600000,O125*0.3+180000,O131) -> 180000
C131: 3600000 | D131: 6600000 | E131: 収入*0.2+540000 | F131: =IF(F125<=6600000,F125*0.2+540000,F132) -> 540000 | L131: 3600000 | M131: 6600000 | N131: 収入*0.2+540000 | O131: =IF(O125<=6600000,O125*0.2+540000,O132) -> 540000
C132: 6600000 | D132: 10000000 | E132: 収入*0.1+1200000 | F132: =IF(F125<=10000000,F125*0.1+1200000,F133) -> 1200000 | L132: 6600000 | M132: 10000000 | N132: 収入*0.1+1200000 | O132: =IF(O125<=10000000,O125*0.1+1200000,O133) -> 1200000
C133: 1000000 | E133: 2200000 | F133: 2200000 | L133: 1000000 | N133: 2200000 | O133: 2200000
N135: ↓↓この表に触らないこと(入力はB36欄::出力は
C137: 第2表 公的年金等の控除額計算欄(改変禁止) | L137: 第2表 公的年金等の控除額計算欄(改変禁止)
C138: https://www.nta.go.jp/taxes/shiraberu/taxanswer/shotoku/1600.htm | L138: https://www.nta.go.jp/taxes/shiraberu/taxanswer/shotoku/1600.htm
C139: 年齢 | L139: 年齢
D140: ↓出力 | E140: ↓入力 | F140: 年金収入金額 | G140: 年金控除額 | H140: 年金控除後 | M140: ↓出力 | N140: ↓入力 | O140: 年金収入金額 | P140: 年金控除額
C141: 65歳未満 | D141: =IF(E34<700000,E141,D142) -> 0 | E141: =E34 -> 0 | F141: 70万円以下 | G141: 収入全額 | H141: ０円 | L141: 65歳未満 | M141: =IF(N34<700000,N141,M142) -> 0 | N141: =N34 -> 0 | O141: 70万円以下 | P141: 収入全額
D142: =IF(E34<1300000,E142,D143) -> 700000 | E142: 700000 | F142: 70万円超130万円未満 | G142: 700000円 | H142: 収入金額－70万円 | M142: =IF(N34<1300000,N142,M143) -> 700000 | N142: 700000 | O142: 70万円超130万円未満 | P142: 700000円
D143: =IF(E34<4100000,E143,D144) -> 375000 | E143: =E34*0.25+375000 -> 375000 | F143: 130万円以上410万円未満 | G143: 収入*0.25+375000 | H143: 収入金額×0.75－37万5千円 | M143: =IF(N34<4100000,N143,M144) -> 375000 | N143: =N34*0.25+375000 -> 375000 | O143: 130万円以上410万円未満 | P143: 収入*0.25+375000
D144: =IF(E34<7500000,E144,D145) -> 785000 | E144: =E34*0.15+785000 -> 785000 | F144: 410万円以上770万円未満 | G144: 収入*0.15+785000 | H144: 収入金額×0.85－78万5千円 | M144: =IF(N34<7500000,N144,M145) -> 785000 | N144: =N34*0.15+785000 -> 785000 | O144: 410万円以上770万円未満 | P144: 収入*0.15+785000
D145: =E145 -> 1555000 | E145: =E34*0.05+1555000 -> 1555000 | F145: 770万円以上 | G145: 収入*0.05+1555000 | H145: 収入金額×0.95－155万5千円 | M145: =N145 -> 1555000 | N145: =N34*0.05+1555000 -> 1555000 | O145: 770万円以上 | P145: 収入*0.05+1555000
C146: 65歳以上 | D146: =IF(E34<1200000,E146,D147) -> 0 | E146: =E34 -> 0 | F146: 120万円以下 | G146: 収入全額 | H146: ０円 | L146: 65歳以上 | M146: =IF(N34<1200000,N146,M147) -> 0 | N146: =N34 -> 0 | O146: 120万円以下 | P146: 収入全額
D147: =IF(E34<3300000,E147,D148) -> 1200000 | E147: 1200000 | F147: 120万円超330万円未満 | G147: 1200000円 | H147: 収入金額－120万円 | M147: =IF(N34<3300000,N147,M148) -> 1200000 | N147: 1200000 | O147: 120万円超330万円未満 | P147: 1200000円
D148: =IF(E34<4100000,E148,D149) -> 375000 | E148: =E34*0.25+375000 -> 375000 | F148: 330万円以上410万円未満 | G148: 収入*0.25+375000 | H148: 収入金額×0.75－37万5千円 | M148: =IF(N34<4100000,N148,M149) -> 375000 | N148: =N34*0.25+375000 -> 375000 | O148: 330万円以上410万円未満 | P148: 収入*0.25+375000
D149: =IF(E34<7500000,E149,D150) -> 785000 | E149: =E34*0.15+785000 -> 785000 | F149: 410万円以上770万円未満 | G149: 収入*0.15+785000 | H149: 収入金額×0.85－78万5千円 | M149: =IF(N34<7500000,N149,M150) -> 785000 | N149: =N34*0.15+785000 -> 785000 | O149: 410万円以上770万円未満 | P149: 収入*0.15+785000
D150: =E150 -> 1555000 | E150: =E34*0.05+1555000 -> 1555000 | F150: 770万円以上 | G150: 収入*0.05+1555000 | H150: 収入金額×0.95－155万5千円 | M150: =N150 -> 1555000 | N150: =N34*0.05+1555000 -> 1555000 | O150: 770万円以上 | P150: 収入*0.05+1555000
C152: 生命保険料控除の計算 | L152: 生命保険料控除の計算
C153: https://www.dai-ichi-life.co.jp/examine/deduction/tool/を参考にした(計算方法) | L153: https://www.dai-ichi-life.co.jp/examine/deduction/tool/を参考にした(計算方法)
C154: https://www.dai-ichi-life.co.jp/information/deduction/calculation.htmlも参照した(税額) | L154: https://www.dai-ichi-life.co.jp/information/deduction/calculation.htmlも参照した(税額)
C156: 第3表の1(所得税用の計算) | L156: 第3表の1(所得税用の計算)
D157: 支払額(入力) | E157: 所得税控除額 *2) | M157: 支払額(入力) | N157: 所得税控除額 *2)
C158: 新生命保険料 | D158: =E54 -> 0 | E158: =D178 -> 0 | F158: ① | H158: =MIN((E158+E159),40000) -> 0 | I158: ③ (①+②ただし最高4万円) | L158: 新生命保険料 | M158: =N54 -> 0 | N158: =M178 -> 0 | O158: ① | Q158: =MIN((N158+N159),40000) -> 0 | R158: ③ (①+②ただし最高4万円) | S158: ③ (①+②ただし最高4万円)
C159: 旧生命保険料 | D159: =E55 -> 0 | E159: =D185 -> 0 | F159: ② | H159: =MAX(E159,H158) -> 0 | I159: イ ②と③の大きい方 | L159: 旧生命保険料 | M159: =N55 -> 0 | N159: =M185 -> 0 | O159: ② | Q159: =MAX(N159,Q158) -> 0 | R159: イ ②と③の大きい方 | S159: イ ②と③の大きい方
C160: 介護医療保険料 | D160: =E56 -> 0 | E160: =D192 -> 0 | F160: ロ | L160: 介護医療保険料 | M160: =N56 -> 0 | N160: =M192 -> 0 | O160: ロ
C161: 新個人年金保険料 | D161: =E57 -> 0 | E161: =D199 -> 0 | F161: ④ | H161: =MIN((E161+E162),40000) -> 0 | I161: ⑥ (④+⑤ただし最高4万円) | L161: 新個人年金保険料 | M161: =N57 -> 0 | N161: =M199 -> 0 | O161: ④ | Q161: =MIN((N161+N162),40000) -> 0 | R161: ⑥ (④+⑤ただし最高4万円) | S161: ⑥ (④+⑤ただし最高4万円)
C162: 旧個人年金保険料 | D162: =E58 -> 0 | E162: =D206 -> 0 | F162: ⑤ | H162: =MAX(E162,H161) -> 0 | I162: ハ ⑤と⑥の大きい方 | L162: 旧個人年金保険料 | M162: =N58 -> 0 | N162: =M206 -> 0 | O162: ⑤ | Q162: =MAX(N162,Q161) -> 0 | R162: ハ ⑤と⑥の大きい方 | S162: ハ ⑤と⑥の大きい方
E163: =MIN((H159+E160+H162),120000) -> 0 | F163: ←出力(イ＋ロ＋ハ。ただし最高12万円) | N163: =MIN((Q159+N160+Q162),120000) -> 0 | O163: ←出力(イ＋ロ＋ハ。ただし最高12万円)
C164: 第3表の2(住民税用の計算) | L164: 第3表の2(住民税用の計算)
D165: 支払額 | E165: 住民税控除額 *2) | M165: 支払額 | N165: 住民税控除額 *2)
C166: 新生命保険料 | D166: =D158 -> 0 | E166: =G178 -> 0 | F166: ① | H166: =MIN((E166+E167),28000) -> 0 | I166: ③ (①+②ただし最高2.8万円 | L166: 新生命保険料 | M166: =M158 -> 0 | N166: =P178 -> 0 | O166: ① | Q166: =MIN((N166+N167),28000) -> 0 | R166: ③ (①+②ただし最高2.8万円 | S166: ③ (①+②ただし最高2.8万円
C167: 旧生命保険料 | D167: =D159 -> 0 | E167: =G185 -> 0 | F167: ② | H167: =MAX(E167,H166) -> 0 | I167: イ ②と③の大きい方 | L167: 旧生命保険料 | M167: =M159 -> 0 | N167: =P185 -> 0 | O167: ② | Q167: =MAX(N167,Q166) -> 0 | R167: イ ②と③の大きい方 | S167: イ ②と③の大きい方
C168: 介護医療保険料 | D168: =D160 -> 0 | E168: =G192 -> 0 | F168: ロ | L168: 介護医療保険料 | M168: =M160 -> 0 | N168: =P192 -> 0 | O168: ロ
C169: 新個人年金保険料 | D169: =D161 -> 0 | E169: =G199 -> 0 | F169: ④ | H169: =MIN((E169+E170),28000) -> 0 | I169: ⑥ (④+⑤ただし最高2.8万円) | L169: 新個人年金保険料 | M169: =M161 -> 0 | N169: =P199 -> 0 | O169: ④ | Q169: =MIN((N169+N170),28000) -> 0 | R169: ⑥ (④+⑤ただし最高2.8万円) | S169: ⑥ (④+⑤ただし最高2.8万円)
C170: 旧個人年金保険料 | D170: =D162 -> 0 | E170: =G206 -> 0 | F170: ⑤ | H170: =MAX(E170,H169) -> 0 | I170: ハ ⑤と⑥の大きい方 | L170: 旧個人年金保険料 | M170: =M162 -> 0 | N170: =P206 -> 0 | O170: ⑤ | Q170: =MAX(N170,Q169) -> 0 | R170: ハ ⑤と⑥の大きい方 | S170: ハ ⑤と⑥の大きい方
E171: =MIN((H167+E168+H170),70000) -> 0 | F171: ←出力(イ＋ロ＋ハ。ただし最高7万円) | N171: =MIN((Q167+N168+Q170),70000) -> 0 | O171: ←出力(イ＋ロ＋ハ。ただし最高7万円)
C174: 上記表の計算欄 | L174: 上記表の計算欄
C175: 所得税用 | F175: 住民税用 | L175: 所得税用 | O175: 住民税用
C176: 新保険料計算用 | F176: 新保険料計算用 | L176: 新保険料計算用 | O176: 新保険料計算用
C177: 支払額 | D177: =D158 -> 0 | E177: ←入力枠 | F177: 支払額 | G177: =D166 -> 0 | H177: ←入力枠 | L177: 支払額 | M177: =M158 -> 0 | N177: ←入力枠 | O177: 支払額 | P177: =M166 -> 0
C178: 2万円以下 | D178: =IF(D177<=20000,D177,D179) -> 0 | E178: ←出力枠 | F178: 1.2万円以下 | G178: =IF(G177<=12000,G177,G179) -> 0 | H178: ←出力枠 | L178: 2万円以下 | M178: =IF(M177<=20000,M177,M179) -> 0 | N178: ←出力枠 | O178: 1.2万円以下 | P178: =IF(P177<=12000,P177,P179) -> 0
C179: 4万円以下 | D179: =IF(D177<=40000,D177/2+10000,D180) -> 10000 | F179: 3.2万円以下 | G179: =IF(G177<=32000,G177/2+6000,G180) -> 6000 | L179: 4万円以下 | M179: =IF(M177<=40000,M177/2+10000,M180) -> 10000 | O179: 3.2万円以下 | P179: =IF(P177<=32000,P177/2+6000,P180) -> 6000
C180: 8万円以下 | D180: =IF(D177<=80000,D177/4+20000,D181) -> 20000 | F180: 5.6万円以下 | G180: =IF(G177<=56000,G177/4+14000,G181) -> 14000 | L180: 8万円以下 | M180: =IF(M177<=80000,M177/4+20000,M181) -> 20000 | O180: 5.6万円以下 | P180: =IF(P177<=56000,P177/4+14000,P181) -> 14000
C181: 8万円を越える | D181: 40000 | F181: 5.6万円を越える | G181: 28000 | L181: 8万円を越える | M181: 40000 | O181: 5.6万円を越える | P181: 28000
C183: 旧保険料計算用 | F183: 旧保険料計算用 | L183: 旧保険料計算用 | O183: 旧保険料計算用
C184: 支払額 | D184: =D159 -> 0 | E184: ←入力枠 | F184: 支払額 | G184: =D167 -> 0 | H184: ←入力枠 | L184: 支払額 | M184: =M159 -> 0 | N184: ←入力枠 | O184: 支払額 | P184: =M167 -> 0
C185: 2.5万円以下 | D185: =IF(D184<=25000,D184,D186) -> 0 | E185: ←出力枠 | F185: 1.5万円以下 | G185: =IF(G184<=15000,G184,G186) -> 0 | H185: ←出力枠 | L185: 2.5万円以下 | M185: =IF(M184<=25000,M184,M186) -> 0 | N185: ←出力枠 | O185: 1.5万円以下 | P185: =IF(P184<=15000,P184,P186) -> 0
C186: 5万円以下 | D186: =IF(D184<=50000,D184/2+12500,D187) -> 12500 | F186: 4万円以下 | G186: =IF(G184<=40000,G184/2+7500,G187) -> 7500 | L186: 5万円以下 | M186: =IF(M184<=50000,M184/2+12500,M187) -> 12500 | O186: 4万円以下 | P186: =IF(P184<=40000,P184/2+7500,P187) -> 7500
C187: 10万円以下 | D187: =IF(D184<=100000,D184/4+25000,D188) -> 25000 | F187: 7万円以下 | G187: =IF(G184<=70000,G184/4+17500,G188) -> 17500 | L187: 10万円以下 | M187: =IF(M184<=100000,M184/4+25000,M188) -> 25000 | O187: 7万円以下 | P187: =IF(P184<=70000,P184/4+17500,P188) -> 17500
C188: 10万円を越える | D188: 50000 | F188: 7万円を越える | G188: 35000 | L188: 10万円を越える | M188: 50000 | O188: 7万円を越える | P188: 35000
C190: 介護保険計算用 | F190: 介護保険計算用 | L190: 介護保険計算用 | O190: 介護保険計算用
C191: 支払額 | D191: =D160 -> 0 | E191: ←入力枠 | F191: 支払額 | G191: =D168 -> 0 | H191: ←入力枠 | L191: 支払額 | M191: =M160 -> 0 | N191: ←入力枠 | O191: 支払額 | P191: =M168 -> 0
C192: 2万円以下 | D192: =IF(D191<=20000,D191,D193) -> 0 | E192: ←出力枠 | F192: 1.2万円以下 | G192: =IF(G191<=12000,G191,G193) -> 0 | H192: ←出力枠 | L192: 2万円以下 | M192: =IF(M191<=20000,M191,M193) -> 0 | N192: ←出力枠 | O192: 1.2万円以下 | P192: =IF(P191<=12000,P191,P193) -> 0
C193: 4万円以下 | D193: =IF(D191<=40000,D191/2+10000,D194) -> 10000 | F193: 3.2万円以下 | G193: =IF(G191<=32000,G191/2+6000,G194) -> 6000 | L193: 4万円以下 | M193: =IF(M191<=40000,M191/2+10000,M194) -> 10000 | O193: 3.2万円以下 | P193: =IF(P191<=32000,P191/2+6000,P194) -> 6000
C194: 8万円以下 | D194: =IF(D191<=80000,D191/4+20000,D195) -> 20000 | F194: 5.6万円以下 | G194: =IF(G191<=56000,G191/4+14000,G195) -> 14000 | L194: 8万円以下 | M194: =IF(M191<=80000,M191/4+20000,M195) -> 20000 | O194: 5.6万円以下 | P194: =IF(P191<=56000,P191/4+14000,P195) -> 14000
C195: 8万円を越える | D195: 40000 | F195: 5.6万円を越える | G195: 28000 | L195: 8万円を越える | M195: 40000 | O195: 5.6万円を越える | P195: 28000
C197: 新個人年金計算用 | F197: 新個人年金計算用 | L197: 新個人年金計算用 | O197: 新個人年金計算用
C198: 支払額 | D198: =D161 -> 0 | E198: ←入力枠 | F198: 支払額 | G198: =D169 -> 0 | H198: ←入力枠 | L198: 支払額 | M198: =M161 -> 0 | N198: ←入力枠 | O198: 支払額 | P198: =M169 -> 0
C199: 2万円以下 | D199: =IF(D198<=20000,D198,D200) -> 0 | E199: ←出力枠 | F199: 1.2万円以下 | G199: =IF(G198<=12000,G198,G200) -> 0 | H199: ←出力枠 | L199: 2万円以下 | M199: =IF(M198<=20000,M198,M200) -> 0 | N199: ←出力枠 | O199: 1.2万円以下 | P199: =IF(P198<=12000,P198,P200) -> 0
C200: 4万円以下 | D200: =IF(D198<=40000,D198/2+10000,D201) -> 10000 | F200: 3.2万円以下 | G200: =IF(G198<=32000,G198/2+6000,G201) -> 6000 | L200: 4万円以下 | M200: =IF(M198<=40000,M198/2+10000,M201) -> 10000 | O200: 3.2万円以下 | P200: =IF(P198<=32000,P198/2+6000,P201) -> 6000
C201: 8万円以下 | D201: =IF(D198<=80000,D198/4+20000,D202) -> 20000 | F201: 5.6万円以下 | G201: =IF(G198<=56000,G198/4+14000,G202) -> 14000 | L201: 8万円以下 | M201: =IF(M198<=80000,M198/4+20000,M202) -> 20000 | O201: 5.6万円以下 | P201: =IF(P198<=56000,P198/4+14000,P202) -> 14000
C202: 8万円を越える | D202: 40000 | F202: 5.6万円を越える | G202: 28000 | L202: 8万円を越える | M202: 40000 | O202: 5.6万円を越える | P202: 28000
C204: 旧個人年金計算用 | F204: 旧個人年金計算用 | L204: 旧個人年金計算用 | O204: 旧個人年金計算用
C205: 支払額 | D205: =D162 -> 0 | E205: ←入力枠 | F205: 支払額 | G205: =D170 -> 0 | H205: ←入力枠 | L205: 支払額 | M205: =M162 -> 0 | N205: ←入力枠 | O205: 支払額 | P205: =M170 -> 0
C206: 2.5万円以下 | D206: =IF(D205<=25000,D205,D207) -> 0 | E206: ←出力枠 | F206: 1.5万円以下 | G206: =IF(G205<=15000,G205,G207) -> 0 | H206: ←出力枠 | L206: 2.5万円以下 | M206: =IF(M205<=25000,M205,M207) -> 0 | N206: ←出力枠 | O206: 1.5万円以下 | P206: =IF(P205<=15000,P205,P207) -> 0
C207: 5万円以下 | D207: =IF(D205<=50000,D205/2+12500,D208) -> 12500 | F207: 4万円以下 | G207: =IF(G205<=40000,G205/2+7500,G208) -> 7500 | L207: 5万円以下 | M207: =IF(M205<=50000,M205/2+12500,M208) -> 12500 | O207: 4万円以下 | P207: =IF(P205<=40000,P205/2+7500,P208) -> 7500
C208: 10万円以下 | D208: =IF(D205<=100000,D205/4+25000,D209) -> 25000 | F208: 7万円以下 | G208: =IF(G205<=70000,G205/4+17500,G209) -> 17500 | L208: 10万円以下 | M208: =IF(M205<=100000,M205/4+25000,M209) -> 25000 | O208: 7万円以下 | P208: =IF(P205<=70000,P205/4+17500,P209) -> 17500
C209: 10万円を越える | D209: 50000 | F209: 7万円を越える | G209: 35000 | L209: 10万円を越える | M209: 50000 | O209: 7万円を越える | P209: 35000
C211: 第4表 所得税の計算 | L211: 第4表 所得税の計算
C212: 所得の合計額 | F212: ↓入力 (所得) | G212: ↓出力(所得税額) | L212: 所得の合計額 | O212: ↓入力 (所得) | P212: ↓出力(所得税額)
D213: ↓出力(税率) | E213: 控除額(円) | F213: =F71 -> 0 | G213: =ROUNDDOWN((F213*D214/100-E214),-2) -> 0 | M213: ↓出力(税率) | N213: 控除額(円) | O213: =O71 -> 0 | P213: =ROUNDDOWN((O213*M214/100-N214),-2) -> 0
C214: 195万円以下 | D214: =IF(F213<=1950000,5,D215) -> 5 | E214: =IF(F213<=1950000,0,E215) -> 0 | F214: 0.05 | H214: 0円 | L214: 195万円以下 | M214: =IF(O213<=1950000,5,M215) -> 5 | N214: =IF(O213<=1950000,0,N215) -> 0 | O214: 0.05
C215: 195万円超330万円以下 | D215: =IF(F213<=3300000,10,D216) -> 10 | E215: =IF(F213<=3300000,97500,E216) -> 97500 | F215: 0.1 | H215: 97,500円 | L215: 195万円超330万円以下 | M215: =IF(O213<=3300000,10,M216) -> 10 | N215: =IF(O213<=3300000,97500,N216) -> 97500 | O215: 0.1
C216: 330万円超695万円以下 | D216: =IF(F213<=6950000,20,D217) -> 20 | E216: =IF(F213<=6950000,427500,E217) -> 427500 | F216: 0.2 | H216: 427,500円 | L216: 330万円超695万円以下 | M216: =IF(O213<=6950000,20,M217) -> 20 | N216: =IF(O213<=6950000,427500,N217) -> 427500 | O216: 0.2
C217: 695万円超900万円以下 | D217: =IF(F213<=9000000,23,D218) -> 23 | E217: =IF(F213<=9000000,636000,E218) -> 636000 | F217: 0.23 | H217: 636,000円 | L217: 695万円超900万円以下 | M217: =IF(O213<=9000000,23,M218) -> 23 | N217: =IF(O213<=9000000,636000,N218) -> 636000 | O217: 0.23
C218: 900万円超1,800万円以下 | D218: =IF(F213<=18000000,33,D219) -> 33 | E218: =IF(F71<=18000000,1536000,E219) -> 1536000 | F218: 0.33 | H218: 1536,000円 | L218: 900万円超1,800万円以下 | M218: =IF(O213<=18000000,33,M219) -> 33 | N218: =IF(O71<=18000000,1536000,N219) -> 1536000 | O218: 0.33
C219: 1,800万円超4,000万円以下 | D219: =IF(F213<=40000000,40,D220) -> 40 | E219: =IF(F213<=40000000,2796000,E220) -> 2796000 | F219: 0.4 | H219: 2796,000円 | L219: 1,800万円超4,000万円以下 | M219: =IF(O213<=40000000,40,M220) -> 40 | N219: =IF(O213<=40000000,2796000,N220) -> 2796000 | O219: 0.4
C220: 4,000万円超 | D220: 45 | E220: 4796000 | F220: 0.45 | H220: 4796,000円 | L220: 4,000万円超 | M220: 45 | N220: 4796000 | O220: 0.45
C223: 住民税の合計課税所得金額(↓入力) | D223: 人的控除額の差額の合計金額(↓入力) | L223: 住民税の合計課税所得金額(↓入力) | M223: 人的控除額の差額の合計金額(↓入力)
C224: =F71 -> 0 | D224: =F67-F92 -> 50000 | L224: =O71 -> 0 | M224: =O67-O92 -> 50000
C225: =IF(C224<=2000000,MIN(C224,D224)*0.05,C226) -> 0 | D225: ←出力(調整控除額 | L225: =IF(L224<=2000000,MIN(L224,M224)*0.05,L226) -> 0 | M225: ←出力(調整控除額
C226: =MAX((D224-(C224-2000000))*0.05,2500) -> 102500 | L226: =MAX((M224-(L224-2000000))*0.05,2500) -> 102500
C229: http://www.soumu.go.jp/main_sosiki/jichi_zeisei/czaisei/czaisei_seido/furusato/mechanism/deduction.html
C230: ①所得税からの控除 = （ふるさと納税額－2,000円）×「所得税の税率」
C231: 所得税からの控除額は、上記の①計算式で決まります。
... 12 more rows

Sheet 更新記録
A1: 連絡先
A2: gee01151@nifty.ne.jp かないまる
A4: 更新記録
A5: v1.0リリースしました。193030
A6: v1.1誤記訂正190330
A8: v2.0 ふるさと納税をした結果所得税が変わることで納めすぎになるのに暫定対応しました。190410
A9: v2.1下記を修正190410
A10: ・緑枠追加(計算だけの部分と明示的にわけた)
A11: ・納めたふるさと納税額欄を、納めすぎのときに赤字にしました
A12: ・住民税特例分の限度額(ヘ)を作り、限度額以上か以下かを明示しまし・た控除される額欄を、納めすぎたときに赤字にしました
A13: ・ふるさと納税の還付配分の計算式に復興税分を反映しました
A14: ・第3表の③イ⑥ハの途中計算欄を枠取りして着色しました
A15: ・総務省のページから、ふるさと納税の計算式を転記しました
A16: ・F列を折り返し表示にしてコンパクトにしました
A17: ・人的控除欄を入力忘れ防止のため赤枠にしました。
A18: ・「正しい限度額です」「もっと寄付できる可能性があります」の表示を追加しました。
A20: v3.0.1 下記を修正190421
A21: ・限度額算出方法を、計算式方式から再帰計算方式に改めました。
A22: ・「ドキュメント検査機能では削除できない個人情報がドキュメントに含まれていることがありますので、ご注意ください。」の表示を抑制しました。
A23: v3.0.2 限度額計算ボタンを付けました。V2.101のに記載したケースで検証済。190421
A24: V3.1.1ファイルオープン時に自動的に限度額ボタン計算をするようにしました。

Sheet ②所得・給与控除
A1: 所得控除 | F1: 平成29年分～平成30年分
A2: 平成29年分～平成30年分 | F2: 給与等の収入金額 | H2: 給与所得控除額 | I2: 10000000 | J2: ←入力(収入金額)
F3: 円を越え | G3: 円以下 | I3: =I2-I4 -> 7800000 | J3: ←出力(入力-控除額)
A4: 給与等の収入金額 | C4: 給与所得控除額 | F4: 0 | G4: 650000 | H4: 収入と同額 | I4: =IF(I2<=650000,I2,I5) -> 2200000 | J4: ←出力(控除額)
A5: (給与所得の源泉徴収票の支払金額) | F5: 650000 | G5: 1625000 | H5: 650000 | I5: =IF(I2<=1625000,650000,I6) -> 2200000
A6: 1,800,000円以下 | C6: 収入金額×40％ | F6: 1625000 | G6: 1800000 | H6: 収入*0.4 | I6: =IF(I2<=1800000,I2*0.4,I7) -> 2200000
C7: 650,000円に満たない場合には650,000円 | F7: 1800000 | G7: 3600000 | H7: 収入*0.3+180000 | I7: =IF(I2<=3600000,I2*0.3+180000,I8) -> 2200000
A8: 1,800,000円超 | B8: 3,600,000円以下 | C8: 収入金額×30％+180,000円 | F8: 3600000 | G8: 6600000 | H8: 収入*0.2+540000 | I8: =IF(I2<=6600000,I2*0.2+540000,I9) -> 2200000
A9: 3,600,000円超 | B9: 6,600,000円以下 | C9: 収入金額×20％+540,000円 | F9: 6600000 | G9: 10000000 | H9: 収入*0.1+1200000 | I9: =IF(I2<=10000000,I2*0.1+1200000,I10) -> 2200000
A10: 6,600,000円超 | B10: 10,000,000円以下 | C10: 収入金額×10％+1,200,000円 | F10: 1000000 | H10: 2200000 | I10: 2200000
A11: 10,000,000円超 | C11: 2,200,000円（上限）
A13: 別表第五 年末調整等のための給与所得控除後の給与等の金額の表（第二十八条、第百九十条関係）
A14: （一）
A15: 給与等の金額 | C15: 給与所得控除後の給与等の金額 | D15: 給与等の金額 | F15: 給与所得控除後の給与等の金額 | G15: 給与等の金額 | I15: 給与所得控除後の給与等の金額
A16: 以上 | B16: 未満 | D16: 以上 | E16: 未満 | G16: 以上 | H16: 未満
A17: 円 | B17: 円 | C17: 円 | D17: 円 | E17: 円 | F17: 円 | G17: 円 | H17: 円 | I17: 円
A18: ６５１，０００円未満 | C18: 0 | D18: 1772000 | E18: 1776000 | F18: 1063200 | G18: 1972000 | H18: 1976000 | I18: 1200400
D19: 1776000 | E19: 1780000 | F19: 1065600 | G19: 1976000 | H19: 1980000 | I19: 1203200
D20: 1780000 | E20: 1784000 | F20: 1068000 | G20: 1980000 | H20: 1984000 | I20: 1206000
D21: 1784000 | E21: 1788000 | F21: 1070400 | G21: 1984000 | H21: 1988000 | I21: 1208800
D22: 1788000 | E22: 1792000 | F22: 1072800 | G22: 1988000 | H22: 1992000 | I22: 1211600
A23: 651000 | B23: 1619000 | C23: 給与等の金額から６５０，０００円を控除した金額 | D23: 1792000 | E23: 1796000 | F23: 1075200 | G23: 1992000 | H23: 1996000 | I23: 1214400
D24: 1796000 | E24: 1800000 | F24: 1077600 | G24: 1996000 | H24: 2000000 | I24: 1217200
D25: 1800000 | E25: 1804000 | F25: 1080000 | G25: 2000000 | H25: 2004000 | I25: 1220000
D26: 1804000 | E26: 1808000 | F26: 1082800 | G26: 2004000 | H26: 2008000 | I26: 1222800
D27: 1808000 | E27: 1812000 | F27: 1085600 | G27: 2008000 | H27: 2012000 | I27: 1225600
A28: 1619000 | B28: 1620000 | C28: 969000 | D28: 1812000 | E28: 1816000 | F28: 1088400 | G28: 2012000 | H28: 2016000 | I28: 1228400
A29: 1620000 | B29: 1622000 | C29: 970000 | D29: 1816000 | E29: 1820000 | F29: 1091200 | G29: 2016000 | H29: 2020000 | I29: 1231200
A30: 1622000 | B30: 1624000 | C30: 972000 | D30: 1820000 | E30: 1824000 | F30: 1094000 | G30: 2020000 | H30: 2024000 | I30: 1234000
A31: 1624000 | B31: 1628000 | C31: 974000 | D31: 1824000 | E31: 1828000 | F31: 1096800 | G31: 2024000 | H31: 2028000 | I31: 1236800
A32: 1628000 | B32: 1632000 | C32: 976800 | D32: 1828000 | E32: 1832000 | F32: 1099600 | G32: 2028000 | H32: 2032000 | I32: 1239600
A33: 1632000 | B33: 1636000 | C33: 979200 | D33: 1832000 | E33: 1836000 | F33: 1102400 | G33: 2032000 | H33: 2036000 | I33: 1242400
A34: 1636000 | B34: 1640000 | C34: 981600 | D34: 1836000 | E34: 1840000 | F34: 1105200 | G34: 2036000 | H34: 2040000 | I34: 1245200
A35: 1640000 | B35: 1644000 | C35: 984000 | D35: 1840000 | E35: 1844000 | F35: 1108000 | G35: 2040000 | H35: 2044000 | I35: 1248000
A36: 1644000 | B36: 1648000 | C36: 986400 | D36: 1844000 | E36: 1848000 | F36: 1110800 | G36: 2044000 | H36: 2048000 | I36: 1250800
A37: 1648000 | B37: 1652000 | C37: 988800 | D37: 1848000 | E37: 1852000 | F37: 1113600 | G37: 2048000 | H37: 2052000 | I37: 1253600
A38: 1652000 | B38: 1656000 | C38: 991200 | D38: 1852000 | E38: 1856000 | F38: 1116400 | G38: 2052000 | H38: 2056000 | I38: 1256400
A39: 1656000 | B39: 1660000 | C39: 993600 | D39: 1856000 | E39: 1860000 | F39: 1119200 | G39: 2056000 | H39: 2060000 | I39: 1259200
A40: 1660000 | B40: 1664000 | C40: 996000 | D40: 1860000 | E40: 1864000 | F40: 1122000 | G40: 2060000 | H40: 2064000 | I40: 1262000
A41: 1664000 | B41: 1668000 | C41: 998400 | D41: 1864000 | E41: 1868000 | F41: 1124800 | G41: 2064000 | H41: 2068000 | I41: 1264800
A42: 1668000 | B42: 1672000 | C42: 1000800 | D42: 1868000 | E42: 1872000 | F42: 1127600 | G42: 2068000 | H42: 2072000 | I42: 1267600
A43: 1672000 | B43: 1676000 | C43: 1003200 | D43: 1872000 | E43: 1876000 | F43: 1130400 | G43: 2072000 | H43: 2076000 | I43: 1270400
A44: 1676000 | B44: 1680000 | C44: 1005600 | D44: 1876000 | E44: 1880000 | F44: 1133200 | G44: 2076000 | H44: 2080000 | I44: 1273200
A45: 1680000 | B45: 1684000 | C45: 1008000 | D45: 1880000 | E45: 1884000 | F45: 1136000 | G45: 2080000 | H45: 2084000 | I45: 1276000
A46: 1684000 | B46: 1688000 | C46: 1010400 | D46: 1884000 | E46: 1888000 | F46: 1138800 | G46: 2084000 | H46: 2088000 | I46: 1278800
A47: 1688000 | B47: 1692000 | C47: 1012800 | D47: 1888000 | E47: 1892000 | F47: 1141600 | G47: 2088000 | H47: 2092000 | I47: 1281600
A48: 1692000 | B48: 1696000 | C48: 1015200 | D48: 1892000 | E48: 1896000 | F48: 1144400 | G48: 2092000 | H48: 2096000 | I48: 1284400
A49: 1696000 | B49: 1700000 | C49: 1017600 | D49: 1896000 | E49: 1900000 | F49: 1147200 | G49: 2096000 | H49: 2100000 | I49: 1287200
A50: 1700000 | B50: 1704000 | C50: 1020000 | D50: 1900000 | E50: 1904000 | F50: 1150000 | G50: 2100000 | H50: 2104000 | I50: 1290000
A51: 1704000 | B51: 1708000 | C51: 1022400 | D51: 1904000 | E51: 1908000 | F51: 1152800 | G51: 2104000 | H51: 2108000 | I51: 1292800
A52: 1708000 | B52: 1712000 | C52: 1024800 | D52: 1908000 | E52: 1912000 | F52: 1155600 | G52: 2108000 | H52: 2112000 | I52: 1295600
A53: 1712000 | B53: 1716000 | C53: 1027200 | D53: 1912000 | E53: 1916000 | F53: 1158400 | G53: 2112000 | H53: 2116000 | I53: 1298400
A54: 1716000 | B54: 1720000 | C54: 1029600 | D54: 1916000 | E54: 1920000 | F54: 1161200 | G54: 2116000 | H54: 2120000 | I54: 1301200
A55: 1720000 | B55: 1724000 | C55: 1032000 | D55: 1920000 | E55: 1924000 | F55: 1164000 | G55: 2120000 | H55: 2124000 | I55: 1304000
A56: 1724000 | B56: 1728000 | C56: 1034400 | D56: 1924000 | E56: 1928000 | F56: 1166800 | G56: 2124000 | H56: 2128000 | I56: 1306800
A57: 1728000 | B57: 1732000 | C57: 1036800 | D57: 1928000 | E57: 1932000 | F57: 1169600 | G57: 2128000 | H57: 2132000 | I57: 1309600
A58: 1732000 | B58: 1736000 | C58: 1039200 | D58: 1932000 | E58: 1936000 | F58: 1172400 | G58: 2132000 | H58: 2136000 | I58: 1312400
A59: 1736000 | B59: 1740000 | C59: 1041600 | D59: 1936000 | E59: 1940000 | F59: 1175200 | G59: 2136000 | H59: 2140000 | I59: 1315200
A60: 1740000 | B60: 1744000 | C60: 1044000 | D60: 1940000 | E60: 1944000 | F60: 1178000 | G60: 2140000 | H60: 2144000 | I60: 1318000
A61: 1744000 | B61: 1748000 | C61: 1046400 | D61: 1944000 | E61: 1948000 | F61: 1180800 | G61: 2144000 | H61: 2148000 | I61: 1320800
A62: 1748000 | B62: 1752000 | C62: 1048800 | D62: 1948000 | E62: 1952000 | F62: 1183600 | G62: 2148000 | H62: 2152000 | I62: 1323600
A63: 1752000 | B63: 1756000 | C63: 1051200 | D63: 1952000 | E63: 1956000 | F63: 1186400 | G63: 2152000 | H63: 2156000 | I63: 1326400
A64: 1756000 | B64: 1760000 | C64: 1053600 | D64: 1956000 | E64: 1960000 | F64: 1189200 | G64: 2156000 | H64: 2160000 | I64: 1329200
A65: 1760000 | B65: 1764000 | C65: 1056000 | D65: 1960000 | E65: 1964000 | F65: 1192000 | G65: 2160000 | H65: 2164000 | I65: 1332000
A66: 1764000 | B66: 1768000 | C66: 1058400 | D66: 1964000 | E66: 1968000 | F66: 1194800 | G66: 2164000 | H66: 2168000 | I66: 1334800
A67: 1768000 | B67: 1772000 | C67: 1060800 | D67: 1968000 | E67: 1972000 | F67: 1197600 | G67: 2168000 | H67: 2172000 | I67: 1337600
A68: （二）
A69: 給与等の金額 | C69: 給与所得控除後の給与等の金額 | D69: 給与等の金額 | F69: 給与所得控除後の給与等の金額 | G69: 給与等の金額 | I69: 給与所得控除後の給与等の金額
A70: 以上 | B70: 未満 | D70: 以上 | E70: 未満 | G70: 以上 | H70: 未満
A71: 円 | B71: 円 | C71: 円 | D71: 円 | E71: 円 | F71: 円 | G71: 円 | H71: 円 | I71: 円
A72: 2172000 | B72: 2176000 | C72: 1340400 | D72: 2372000 | E72: 2376000 | F72: 1480400 | G72: 2572000 | H72: 2576000 | I72: 1620400
A73: 2176000 | B73: 2180000 | C73: 1343200 | D73: 2376000 | E73: 2380000 | F73: 1483200 | G73: 2576000 | H73: 2580000 | I73: 1623200
A74: 2180000 | B74: 2184000 | C74: 1346000 | D74: 2380000 | E74: 2384000 | F74: 1486000 | G74: 2580000 | H74: 2584000 | I74: 1626000
A75: 2184000 | B75: 2188000 | C75: 1348800 | D75: 2384000 | E75: 2388000 | F75: 1488800 | G75: 2584000 | H75: 2588000 | I75: 1628800
A76: 2188000 | B76: 2192000 | C76: 1351600 | D76: 2388000 | E76: 2392000 | F76: 1491600 | G76: 2588000 | H76: 2592000 | I76: 1631600
A77: 2192000 | B77: 2196000 | C77: 1354400 | D77: 2392000 | E77: 2396000 | F77: 1494400 | G77: 2592000 | H77: 2596000 | I77: 1634400
A78: 2196000 | B78: 2200000 | C78: 1357200 | D78: 2396000 | E78: 2400000 | F78: 1497200 | G78: 2596000 | H78: 2600000 | I78: 1637200
A79: 2200000 | B79: 2204000 | C79: 1360000 | D79: 2400000 | E79: 2404000 | F79: 1500000 | G79: 2600000 | H79: 2604000 | I79: 1640000
A80: 2204000 | B80: 2208000 | C80: 1362800 | D80: 2404000 | E80: 2408000 | F80: 1502800 | G80: 2604000 | H80: 2608000 | I80: 1642800
A81: 2208000 | B81: 2212000 | C81: 1365600 | D81: 2408000 | E81: 2412000 | F81: 1505600 | G81: 2608000 | H81: 2612000 | I81: 1645600
A82: 2212000 | B82: 2216000 | C82: 1368400 | D82: 2412000 | E82: 2416000 | F82: 1508400 | G82: 2612000 | H82: 2616000 | I82: 1648400
A83: 2216000 | B83: 2220000 | C83: 1371200 | D83: 2416000 | E83: 2420000 | F83: 1511200 | G83: 2616000 | H83: 2620000 | I83: 1651200
A84: 2220000 | B84: 2224000 | C84: 1374000 | D84: 2420000 | E84: 2424000 | F84: 1514000 | G84: 2620000 | H84: 2624000 | I84: 1654000
A85: 2224000 | B85: 2228000 | C85: 1376800 | D85: 2424000 | E85: 2428000 | F85: 1516800 | G85: 2624000 | H85: 2628000 | I85: 1656800
A86: 2228000 | B86: 2232000 | C86: 1379600 | D86: 2428000 | E86: 2432000 | F86: 1519600 | G86: 2628000 | H86: 2632000 | I86: 1659600
A87: 2232000 | B87: 2236000 | C87: 1382400 | D87: 2432000 | E87: 2436000 | F87: 1522400 | G87: 2632000 | H87: 2636000 | I87: 1662400
A88: 2236000 | B88: 2240000 | C88: 1385200 | D88: 2436000 | E88: 2440000 | F88: 1525200 | G88: 2636000 | H88: 2640000 | I88: 1665200
A89: 2240000 | B89: 2244000 | C89: 1388000 | D89: 2440000 | E89: 2444000 | F89: 1528000 | G89: 2640000 | H89: 2644000 | I89: 1668000
A90: 2244000 | B90: 2248000 | C90: 1390800 | D90: 2444000 | E90: 2448000 | F90: 1530800 | G90: 2644000 | H90: 2648000 | I90: 1670800
A91: 2248000 | B91: 2252000 | C91: 1393600 | D91: 2448000 | E91: 2452000 | F91: 1533600 | G91: 2648000 | H91: 2652000 | I91: 1673600
A92: 2252000 | B92: 2256000 | C92: 1396400 | D92: 2452000 | E92: 2456000 | F92: 1536400 | G92: 2652000 | H92: 2656000 | I92: 1676400
A93: 2256000 | B93: 2260000 | C93: 1399200 | D93: 2456000 | E93: 2460000 | F93: 1539200 | G93: 2656000 | H93: 2660000 | I93: 1679200
A94: 2260000 | B94: 2264000 | C94: 1402000 | D94: 2460000 | E94: 2464000 | F94: 1542000 | G94: 2660000 | H94: 2664000 | I94: 1682000
A95: 2264000 | B95: 2268000 | C95: 1404800 | D95: 2464000 | E95: 2468000 | F95: 1544800 | G95: 2664000 | H95: 2668000 | I95: 1684800
A96: 2268000 | B96: 2272000 | C96: 1407600 | D96: 2468000 | E96: 2472000 | F96: 1547600 | G96: 2668000 | H96: 2672000 | I96: 1687600
A97: 2272000 | B97: 2276000 | C97: 1410400 | D97: 2472000 | E97: 2476000 | F97: 1550400 | G97: 2672000 | H97: 2676000 | I97: 1690400
A98: 2276000 | B98: 2280000 | C98: 1413200 | D98: 2476000 | E98: 2480000 | F98: 1553200 | G98: 2676000 | H98: 2680000 | I98: 1693200
A99: 2280000 | B99: 2284000 | C99: 1416000 | D99: 2480000 | E99: 2484000 | F99: 1556000 | G99: 2680000 | H99: 2684000 | I99: 1696000
A100: 2284000 | B100: 2288000 | C100: 1418800 | D100: 2484000 | E100: 2488000 | F100: 1558800 | G100: 2684000 | H100: 2688000 | I100: 1698800
A101: 2288000 | B101: 2292000 | C101: 1421600 | D101: 2488000 | E101: 2492000 | F101: 1561600 | G101: 2688000 | H101: 2692000 | I101: 1701600
A102: 2292000 | B102: 2296000 | C102: 1424400 | D102: 2492000 | E102: 2496000 | F102: 1564400 | G102: 2692000 | H102: 2696000 | I102: 1704400
A103: 2296000 | B103: 2300000 | C103: 1427200 | D103: 2496000 | E103: 2500000 | F103: 1567200 | G103: 2696000 | H103: 2700000 | I103: 1707200
A104: 2300000 | B104: 2304000 | C104: 1430000 | D104: 2500000 | E104: 2504000 | F104: 1570000 | G104: 2700000 | H104: 2704000 | I104: 1710000
A105: 2304000 | B105: 2308000 | C105: 1432800 | D105: 2504000 | E105: 2508000 | F105: 1572800 | G105: 2704000 | H105: 2708000 | I105: 1712800
A106: 2308000 | B106: 2312000 | C106: 1435600 | D106: 2508000 | E106: 2512000 | F106: 1575600 | G106: 2708000 | H106: 2712000 | I106: 1715600
A107: 2312000 | B107: 2316000 | C107: 1438400 | D107: 2512000 | E107: 2516000 | F107: 1578400 | G107: 2712000 | H107: 2716000 | I107: 1718400
A108: 2316000 | B108: 2320000 | C108: 1441200 | D108: 2516000 | E108: 2520000 | F108: 1581200 | G108: 2716000 | H108: 2720000 | I108: 1721200
A109: 2320000 | B109: 2324000 | C109: 1444000 | D109: 2520000 | E109: 2524000 | F109: 1584000 | G109: 2720000 | H109: 2724000 | I109: 1724000
A110: 2324000 | B110: 2328000 | C110: 1446800 | D110: 2524000 | E110: 2528000 | F110: 1586800 | G110: 2724000 | H110: 2728000 | I110: 1726800
A111: 2328000 | B111: 2332000 | C111: 1449600 | D111: 2528000 | E111: 2532000 | F111: 1589600 | G111: 2728000 | H111: 2732000 | I111: 1729600
A112: 2332000 | B112: 2336000 | C112: 1452400 | D112: 2532000 | E112: 2536000 | F112: 1592400 | G112: 2732000 | H112: 2736000 | I112: 1732400
A113: 2336000 | B113: 2340000 | C113: 1455200 | D113: 2536000 | E113: 2540000 | F113: 1595200 | G113: 2736000 | H113: 2740000 | I113: 1735200
A114: 2340000 | B114: 2344000 | C114: 1458000 | D114: 2540000 | E114: 2544000 | F114: 1598000 | G114: 2740000 | H114: 2744000 | I114: 1738000
A115: 2344000 | B115: 2348000 | C115: 1460800 | D115: 2544000 | E115: 2548000 | F115: 1600800 | G115: 2744000 | H115: 2748000 | I115: 1740800
A116: 2348000 | B116: 2352000 | C116: 1463600 | D116: 2548000 | E116: 2552000 | F116: 1603600 | G116: 2748000 | H116: 2752000 | I116: 1743600
A117: 2352000 | B117: 2356000 | C117: 1466400 | D117: 2552000 | E117: 2556000 | F117: 1606400 | G117: 2752000 | H117: 2756000 | I117: 1746400
A118: 2356000 | B118: 2360000 | C118: 1469200 | D118: 2556000 | E118: 2560000 | F118: 1609200 | G118: 2756000 | H118: 2760000 | I118: 1749200
A119: 2360000 | B119: 2364000 | C119: 1472000 | D119: 2560000 | E119: 2564000 | F119: 1612000 | G119: 2760000 | H119: 2764000 | I119: 1752000
A120: 2364000 | B120: 2368000 | C120: 1474800 | D120: 2564000 | E120: 2568000 | F120: 1614800 | G120: 2764000 | H120: 2768000 | I120: 1754800
A121: 2368000 | B121: 2372000 | C121: 1477600 | D121: 2568000 | E121: 2572000 | F121: 1617600 | G121: 2768000 | H121: 2772000 | I121: 1757600
A122: （三）
A123: 給与等の金額 | C123: 給与所得控除後の給与等の金額 | D123: 給与等の金額 | F123: 給与所得控除後の給与等の金額 | G123: 給与等の金額 | I123: 給与所得控除後の給与等の金額
A124: 以上 | B124: 未満 | D124: 以上 | E124: 未満 | G124: 以上 | H124: 未満
A125: 円 | B125: 円 | C125: 円 | D125: 円 | E125: 円 | F125: 円 | G125: 円 | H125: 円 | I125: 円
A126: 2772000 | B126: 2776000 | C126: 1760400 | D126: 2972000 | E126: 2976000 | F126: 1900400 | G126: 3172000 | H126: 3176000 | I126: 2040400
A127: 2776000 | B127: 2780000 | C127: 1763200 | D127: 2976000 | E127: 2980000 | F127: 1903200 | G127: 3176000 | H127: 3180000 | I127: 2043200
A128: 2780000 | B128: 2784000 | C128: 1766000 | D128: 2980000 | E128: 2984000 | F128: 1906000 | G128: 3180000 | H128: 3184000 | I128: 2046000
A129: 2784000 | B129: 2788000 | C129: 1768800 | D129: 2984000 | E129: 2988000 | F129: 1908800 | G129: 3184000 | H129: 3188000 | I129: 2048800
A130: 2788000 | B130: 2792000 | C130: 1771600 | D130: 2988000 | E130: 2992000 | F130: 1911600 | G130: 3188000 | H130: 3192000 | I130: 2051600
A131: 2792000 | B131: 2796000 | C131: 1774400 | D131: 2992000 | E131: 2996000 | F131: 1914400 | G131: 3192000 | H131: 3196000 | I131: 2054400
A132: 2796000 | B132: 2800000 | C132: 1777200 | D132: 2996000 | E132: 3000000 | F132: 1917200 | G132: 3196000 | H132: 3200000 | I132: 2057200
A133: 2800000 | B133: 2804000 | C133: 1780000 | D133: 3000000 | E133: 3004000 | F133: 1920000 | G133: 3200000 | H133: 3204000 | I133: 2060000
A134: 2804000 | B134: 2808000 | C134: 1782800 | D134: 3004000 | E134: 3008000 | F134: 1922800 | G134: 3204000 | H134: 3208000 | I134: 2062800
A135: 2808000 | B135: 2812000 | C135: 1785600 | D135: 3008000 | E135: 3012000 | F135: 1925600 | G135: 3208000 | H135: 3212000 | I135: 2065600
A136: 2812000 | B136: 2816000 | C136: 1788400 | D136: 3012000 | E136: 3016000 | F136: 1928400 | G136: 3212000 | H136: 3216000 | I136: 2068400
A137: 2816000 | B137: 2820000 | C137: 1791200 | D137: 3016000 | E137: 3020000 | F137: 1931200 | G137: 3216000 | H137: 3220000 | I137: 2071200
A138: 2820000 | B138: 2824000 | C138: 1794000 | D138: 3020000 | E138: 3024000 | F138: 1934000 | G138: 3220000 | H138: 3224000 | I138: 2074000
A139: 2824000 | B139: 2828000 | C139: 1796800 | D139: 3024000 | E139: 3028000 | F139: 1936800 | G139: 3224000 | H139: 3228000 | I139: 2076800
A140: 2828000 | B140: 2832000 | C140: 1799600 | D140: 3028000 | E140: 3032000 | F140: 1939600 | G140: 3228000 | H140: 3232000 | I140: 2079600
A141: 2832000 | B141: 2836000 | C141: 1802400 | D141: 3032000 | E141: 3036000 | F141: 1942400 | G141: 3232000 | H141: 3236000 | I141: 2082400
A142: 2836000 | B142: 2840000 | C142: 1805200 | D142: 3036000 | E142: 3040000 | F142: 1945200 | G142: 3236000 | H142: 3240000 | I142: 2085200
A143: 2840000 | B143: 2844000 | C143: 1808000 | D143: 3040000 | E143: 3044000 | F143: 1948000 | G143: 3240000 | H143: 3244000 | I143: 2088000
A144: 2844000 | B144: 2848000 | C144: 1810800 | D144: 3044000 | E144: 3048000 | F144: 1950800 | G144: 3244000 | H144: 3248000 | I144: 2090800
A145: 2848000 | B145: 2852000 | C145: 1813600 | D145: 3048000 | E145: 3052000 | F145: 1953600 | G145: 3248000 | H145: 3252000 | I145: 2093600
A146: 2852000 | B146: 2856000 | C146: 1816400 | D146: 3052000 | E146: 3056000 | F146: 1956400 | G146: 3252000 | H146: 3256000 | I146: 2096400
A147: 2856000 | B147: 2860000 | C147: 1819200 | D147: 3056000 | E147: 3060000 | F147: 1959200 | G147: 3256000 | H147: 3260000 | I147: 2099200
A148: 2860000 | B148: 2864000 | C148: 1822000 | D148: 3060000 | E148: 3064000 | F148: 1962000 | G148: 3260000 | H148: 3264000 | I148: 2102000
A149: 2864000 | B149: 2868000 | C149: 1824800 | D149: 3064000 | E149: 3068000 | F149: 1964800 | G149: 3264000 | H149: 3268000 | I149: 2104800
A150: 2868000 | B150: 2872000 | C150: 1827600 | D150: 3068000 | E150: 3072000 | F150: 1967600 | G150: 3268000 | H150: 3272000 | I150: 2107600
A151: 2872000 | B151: 2876000 | C151: 1830400 | D151: 3072000 | E151: 3076000 | F151: 1970400 | G151: 3272000 | H151: 3276000 | I151: 2110400
A152: 2876000 | B152: 2880000 | C152: 1833200 | D152: 3076000 | E152: 3080000 | F152: 1973200 | G152: 3276000 | H152: 3280000 | I152: 2113200
A153: 2880000 | B153: 2884000 | C153: 1836000 | D153: 3080000 | E153: 3084000 | F153: 1976000 | G153: 3280000 | H153: 3284000 | I153: 2116000
A154: 2884000 | B154: 2888000 | C154: 1838800 | D154: 3084000 | E154: 3088000 | F154: 1978800 | G154: 3284000 | H154: 3288000 | I154: 2118800
A155: 2888000 | B155: 2892000 | C155: 1841600 | D155: 3088000 | E155: 3092000 | F155: 1981600 | G155: 3288000 | H155: 3292000 | I155: 2121600
A156: 2892000 | B156: 2896000 | C156: 1844400 | D156: 3092000 | E156: 3096000 | F156: 1984400 | G156: 3292000 | H156: 3296000 | I156: 2124400
A157: 2896000 | B157: 2900000 | C157: 1847200 | D157: 3096000 | E157: 3100000 | F157: 1987200 | G157: 3296000 | H157: 3300000 | I157: 2127200
A158: 2900000 | B158: 2904000 | C158: 1850000 | D158: 3100000 | E158: 3104000 | F158: 1990000 | G158: 3300000 | H158: 3304000 | I158: 2130000
A159: 2904000 | B159: 2908000 | C159: 1852800 | D159: 3104000 | E159: 3108000 | F159: 1992800 | G159: 3304000 | H159: 3308000 | I159: 2132800
A160: 2908000 | B160: 2912000 | C160: 1855600 | D160: 3108000 | E160: 3112000 | F160: 1995600 | G160: 3308000 | H160: 3312000 | I160: 2135600
A161: 2912000 | B161: 2916000 | C161: 1858400 | D161: 3112000 | E161: 3116000 | F161: 1998400 | G161: 3312000 | H161: 3316000 | I161: 2138400
A162: 2916000 | B162: 2920000 | C162: 1861200 | D162: 3116000 | E162: 3120000 | F162: 2001200 | G162: 3316000 | H162: 3320000 | I162: 2141200
A163: 2920000 | B163: 2924000 | C163: 1864000 | D163: 3120000 | E163: 3124000 | F163: 2004000 | G163: 3320000 | H163: 3324000 | I163: 2144000
A164: 2924000 | B164: 2928000 | C164: 1866800 | D164: 3124000 | E164: 3128000 | F164: 2006800 | G164: 3324000 | H164: 3328000 | I164: 2146800
A165: 2928000 | B165: 2932000 | C165: 1869600 | D165: 3128000 | E165: 3132000 | F165: 2009600 | G165: 3328000 | H165: 3332000 | I165: 2149600
A166: 2932000 | B166: 2936000 | C166: 1872400 | D166: 3132000 | E166: 3136000 | F166: 2012400 | G166: 3332000 | H166: 3336000 | I166: 2152400
A167: 2936000 | B167: 2940000 | C167: 1875200 | D167: 3136000 | E167: 3140000 | F167: 2015200 | G167: 3336000 | H167: 3340000 | I167: 2155200
A168: 2940000 | B168: 2944000 | C168: 1878000 | D168: 3140000 | E168: 3144000 | F168: 2018000 | G168: 3340000 | H168: 3344000 | I168: 2158000
A169: 2944000 | B169: 2948000 | C169: 1880800 | D169: 3144000 | E169: 3148000 | F169: 2020800 | G169: 3344000 | H169: 3348000 | I169: 2160800
A170: 2948000 | B170: 2952000 | C170: 1883600 | D170: 3148000 | E170: 3152000 | F170: 2023600 | G170: 3348000 | H170: 3352000 | I170: 2163600
A171: 2952000 | B171: 2956000 | C171: 1886400 | D171: 3152000 | E171: 3156000 | F171: 2026400 | G171: 3352000 | H171: 3356000 | I171: 2166400
A172: 2956000 | B172: 2960000 | C172: 1889200 | D172: 3156000 | E172: 3160000 | F172: 2029200 | G172: 3356000 | H172: 3360000 | I172: 2169200
A173: 2960000 | B173: 2964000 | C173: 1892000 | D173: 3160000 | E173: 3164000 | F173: 2032000 | G173: 3360000 | H173: 3364000 | I173: 2172000
A174: 2964000 | B174: 2968000 | C174: 1894800 | D174: 3164000 | E174: 3168000 | F174: 2034800 | G174: 3364000 | H174: 3368000 | I174: 2174800
A175: 2968000 | B175: 2972000 | C175: 1897600 | D175: 3168000 | E175: 3172000 | F175: 2037600 | G175: 3368000 | H175: 3372000 | I175: 2177600
A176: （四）
A177: 給与等の金額 | C177: 給与所得控除後の給与等の金額 | D177: 給与等の金額 | F177: 給与所得控除後の給与等の金額 | G177: 給与等の金額 | I177: 給与所得控除後の給与等の金額
A178: 以上 | B178: 未満 | D178: 以上 | E178: 未満 | G178: 以上 | H178: 未満
A179: 円 | B179: 円 | C179: 円 | D179: 円 | E179: 円 | F179: 円 | G179: 円 | H179: 円 | I179: 円
A180: 3372000 | B180: 3376000 | C180: 2180400 | D180: 3572000 | E180: 3576000 | F180: 2320400 | G180: 3772000 | H180: 3776000 | I180: 2477600
A181: 3376000 | B181: 3380000 | C181: 2183200 | D181: 3576000 | E181: 3580000 | F181: 2323200 | G181: 3776000 | H181: 3780000 | I181: 2480800
A182: 3380000 | B182: 3384000 | C182: 2186000 | D182: 3580000 | E182: 3584000 | F182: 2326000 | G182: 3780000 | H182: 3784000 | I182: 2484000
A183: 3384000 | B183: 3388000 | C183: 2188800 | D183: 3584000 | E183: 3588000 | F183: 2328800 | G183: 3784000 | H183: 3788000 | I183: 2487200
A184: 3388000 | B184: 3392000 | C184: 2191600 | D184: 3588000 | E184: 3592000 | F184: 2331600 | G184: 3788000 | H184: 3792000 | I184: 2490400
A185: 3392000 | B185: 3396000 | C185: 2194400 | D185: 3592000 | E185: 3596000 | F185: 2334400 | G185: 3792000 | H185: 3796000 | I185: 2493600
A186: 3396000 | B186: 3400000 | C186: 2197200 | D186: 3596000 | E186: 3600000 | F186: 2337200 | G186: 3796000 | H186: 3800000 | I186: 2496800
A187: 3400000 | B187: 3404000 | C187: 2200000 | D187: 3600000 | E187: 3604000 | F187: 2340000 | G187: 3800000 | H187: 3804000 | I187: 2500000
A188: 3404000 | B188: 3408000 | C188: 2202800 | D188: 3604000 | E188: 3608000 | F188: 2343200 | G188: 3804000 | H188: 3808000 | I188: 2503200
A189: 3408000 | B189: 3412000 | C189: 2205600 | D189: 3608000 | E189: 3612000 | F189: 2346400 | G189: 3808000 | H189: 3812000 | I189: 2506400
A190: 3412000 | B190: 3416000 | C190: 2208400 | D190: 3612000 | E190: 3616000 | F190: 2349600 | G190: 3812000 | H190: 3816000 | I190: 2509600
A191: 3416000 | B191: 3420000 | C191: 2211200 | D191: 3616000 | E191: 3620000 | F191: 2352800 | G191: 3816000 | H191: 3820000 | I191: 2512800
A192: 3420000 | B192: 3424000 | C192: 2214000 | D192: 3620000 | E192: 3624000 | F192: 2356000 | G192: 3820000 | H192: 3824000 | I192: 2516000
A193: 3424000 | B193: 3428000 | C193: 2216800 | D193: 3624000 | E193: 3628000 | F193: 2359200 | G193: 3824000 | H193: 3828000 | I193: 2519200
A194: 3428000 | B194: 3432000 | C194: 2219600 | D194: 3628000 | E194: 3632000 | F194: 2362400 | G194: 3828000 | H194: 3832000 | I194: 2522400
A195: 3432000 | B195: 3436000 | C195: 2222400 | D195: 3632000 | E195: 3636000 | F195: 2365600 | G195: 3832000 | H195: 3836000 | I195: 2525600
A196: 3436000 | B196: 3440000 | C196: 2225200 | D196: 3636000 | E196: 3640000 | F196: 2368800 | G196: 3836000 | H196: 3840000 | I196: 2528800
A197: 3440000 | B197: 3444000 | C197: 2228000 | D197: 3640000 | E197: 3644000 | F197: 2372000 | G197: 3840000 | H197: 3844000 | I197: 2532000
A198: 3444000 | B198: 3448000 | C198: 2230800 | D198: 3644000 | E198: 3648000 | F198: 2375200 | G198: 3844000 | H198: 3848000 | I198: 2535200
A199: 3448000 | B199: 3452000 | C199: 2233600 | D199: 3648000 | E199: 3652000 | F199: 2378400 | G199: 3848000 | H199: 3852000 | I199: 2538400
A200: 3452000 | B200: 3456000 | C200: 2236400 | D200: 3652000 | E200: 3656000 | F200: 2381600 | G200: 3852000 | H200: 3856000 | I200: 2541600
A201: 3456000 | B201: 3460000 | C201: 2239200 | D201: 3656000 | E201: 3660000 | F201: 2384800 | G201: 3856000 | H201: 3860000 | I201: 2544800
... 308 more rows

Sheet ③所得控除・調整控除
A1: 市・県民税の所得割から税額控除をします。計算方法は次の通りです。
A3: 1． 市・県民税の合計課税所得金額が200万円以下の人
A4: 次の（1）と（2）のいずれか少ない金額の5％（市民税3％、県民税2％）
A5: (1)人的控除額の差額の合計金額
A6: (2)市・県民税の合計課税所得金額
A8: 2． 市・県民税の合計課税所得金額が200万円を超える人
A9: {人的控除額の差額の合計金額－（合計課税所得金額－200万円）}×5％(市民税3％、県民税2％)
A10: ただし、計算結果が2,500円未満のときは、2,500円。
A12: ※ 「合計課税所得金額 」とは、
A13: 課税総所得金額(給与・年金・営業等・不動産などの所得から、社会保険・生命保険・扶養控除
A14: などの控除を差し引いた金額)＋課税退職所得金額＋課税山林所得金額のこと。
A15: 土地建物を譲渡したときの短期・長期譲渡所得や株式等譲渡所得などの申告分離課税に係る課
A16: 税所得は、この 「合計課税所得金額 」には含まれません。
A19: 住民税の合計課税所得金額(↓入力) | B19: 人的控除額の差額の合計金額(↓入力)
A20: 2020000 | B20: 100000
A21: =IF(A20<=2000000,MIN(A20,B20)*0.05,A22) -> 4000 | B21: ←出力(調整控除額
A22: =MAX((B20-(A20-2000000))*0.05,2500) -> 4000
A25: ■人的控除の差
A26: 基礎控除・扶養控除・障害者控除・寡婦控除など、自分や家族などの“人”に関する所得
A27: 控除のことを「人的控除」と呼んでいます。人的控除は以下の一覧表のとおり所得税と
A28: 市・県民税の控除金額が異なります。
A30: ●平成31年度以降 の人的控除額
A71: ●平成30年度まで

Sheet ④検証ケーススタディー
A1: ふるさと納税の問題点
A3: 寄付により税率が落ち、件度額が落ちてしまう問題
A4: https://www.furusato-tax.jp/about/simulation
A5: ※４｢給料収入650万円」の場合は、寄附をしない場合の課税総所得金額
A6: が「333万7,000円」です。従って、寄附をすることにより課税総所得金
A7: 額が「330万円以下」となり、「寄附をしない場合」と「した場合」と
A8: で適用される所得税率が変動してしまう為、自己負担額が「2,000円」
A9: では済まないこととなります（このケースでは自己負担が2,000円で済
A10: む寄附金額は、おおむね「40,000円」までとなります）。
A12: ※５｢年金収入650万円」の場合は、寄附をしない場合の課税総所得金額
A13: が「330万8,000円」です。従って、寄附をすることにより課税総所得金
A14: 額が「330万円以下」となり、「寄附をしない場合」と「した場合」と
A15: で適用される所得税率が変動してしまう為、自己負担額が「2,000円」
A16: では済まないこととなります（このケースでは自己負担が2,000円で済
A17: む寄附金額は、おおむね「10,000円」までとなります）。
A20: http://tabi-tokimeki.com/archives/furusato-tax/limit-calculation
A22: 上記問題点に対して、再帰計算を導入。下記ケースで検証した。。
A24: 税率の切れ目は3300000円
D25: 限寄付を引いた課税所得
A26: 税率が低すぎて 寄付額がリミットを買えない人
A27: 収入 | B27: 課税所得 | C27: 税率0 | E27: 税率1 | F27: 限度額0 | G27: 再計算後の限度額
A28: 3680000 | B28: 3300000 | C28: 10 | E28: 10 | F28: 85300 | G28: 85300
A30: 寄付により限度額が変化する人で収入が低い方のリミットの人
A31: 寄付なしの税率は20%。寄付を少しすると税率は10%になり、そのまま寄付金を上げると限度額になる | J31: 実課税所得 | K31: 実税率
A32: 3681000 | B32: 3301000 | C32: 20 | E32: 10 | F32: 97600 | G32: 85300 | H32: 85300 | I32: 寄付可能 | J32: 3217000 | K32: 10
H33: 100 | I33: 寄付可能 | J33: 3301000 | K33: 20
H34: 10000 | I34: 寄付可能 | J34: 3293000 | K34: 10
H35: 50000 | I35: 寄付可能 | J35: 3250000 | K35: 10
H36: 70000 | I36: 寄付可能 | J36: 3230000 | K36: 10
H37: 85000 | I37: 寄付可能 | J37: 3218000 | K37: 10
H38: 86300 | I38: 寄付不可能 | J38: 3516000 | K38: 10
A39: 寄付により限度額が変化する人で収入が上下リミットの中間の人。
A40: 寄付なしの税率は20%。限度額の半分程度で税率は10%になり、そのまま寄付金を上げると限度額になる
A41: 3720000 | B41: 3340000 | C41: 20 | E41: 10 | F41: 98700 | G41: 86300 | H41: 100 | I41: 寄付可能 | J41: 3340000 | K41: 20
H42: 10000 | I42: 寄付可能 | J42: 3320000 | K42: 20
H43: 20000 | I43: 寄付可能 | J43: 3320000 | K43: 20
H44: 40000 | I44: 寄付可能 | J44: 3302000 | K44: 20
H45: 60000 | I45: 寄付可能 | J45: 3282000 | K45: 10
H46: 86000 | I46: 寄付可能 | J46: 3256000 | K46: 10
H47: 86300 | I47: 寄付可能 | J47: 3250000 | K47: 10
H48: 86400 | I48: 寄付不可能 | J48: 325000 | K48: 10 | L48: 住民税特例分が枠を超えた
A51: 寄付により限度額が変化する人で収入が高い方のリミットから少し低い人
A52: 寄付なしはもちろん、寄付可能額の退散は税率は20%のまま。寄付金額を越えると、10%に落ちる、そこでリミットになる | J52: 実課税所得 | K52: 実税率
A53: 3750000 | B53: 3370000 | C53: 20 | E53: 10 | F53: 99500 | G53: 87000 | H53: 70000 | I53: 寄付可能 | J53: 332000 | K53: 20
H54: 80000 | I54: 寄付可能 | J54: 329200 | K54: 10
H55: 87000 | I55: 寄付可能 | J55: 328500 | K55: 10
H56: 87200 | I56: 寄付不可能 | J56: 328400 | K56: 10
A58: 寄付により限度額が変化する人で収入が高い方のリミット間近の人。
A59: 寄付なしはもちろん、寄付可能額の退散は税率は20%のまま。寄付金額を越えると、10%に落ちる、そこでリミットになる | J59: 実課税所得 | K59: 実税率 | P59: 所得税分9802円 | R59: 9802
A60: 3770000 | B60: 3390000 | C60: 20 | E60: 10 | F60: 100100 | G60: 87500 | H60: 87400 | I60: 寄付可能 | J60: 3304000 | K60: 20 | P60: 住民税基本分9600 | R60: 9600
H61: 91000 | I61: 寄付可能 | J61: 3301000 | K61: 20 | L61: 計算値をこえても寄付できる | P61: 所得割限度額68440 | R61: 68440
H62: 91100 | I62: 寄付不可能 | J62: 3300000 | K62: 10 | L62: 所得税が下がり住民税特例分が急増し2-%枠を一気に突破する。枠を造する | R62: =SUM(R59:R61) -> 87842
A64: 寄付により限度額が変化する人で収入が高い方のリミット境界の人。この人が頭が痛い。
A65: 寄付なしはもちろん、寄付可能額の退散は税率は20%のまま。寄付金額を越えると、10%に落ちる、そこでリミットになる | J65: 実課税所得 | K65: 実税率
A66: 3777000 | B66: 3397000 | C66: 20 | D66: 3298000 | E66: 10 | F66: 100300 | G66: 87700 | H66: 87700 | I66: 寄付可能 | J66: 3311000 | K66: 20
H67: 87900 | I67: 寄付可能 | J67: 3311000 | K67: 20 | L67: 計算値をこえても寄付できる
H68: 88100 | I68: 寄付可能 | J68: 3310000 | K68: 20
H69: 89000 | I69: 寄付可能 | J69: 3310000 | K69: 20
H70: 95000 | I70: 寄付可能 | J70: 3304000 | K70: 20
H71: 96000 | I71: 寄付可能 | J71: 3303000 | K71: 20
H72: 98000 | I72: 寄付可能 | J72: 3301000 | K72: 20
H73: 98010 | I73: 寄付不可能 | J73: 3300000 | K73: 10
H74: 99000 | I74: 寄付不可能 | J74: 3300000 | K74: 10
H75: 100000 | I75: 寄付不可能 | J75: 3290000 | K75: 10
A76: 税率が高すぎて、ふるさと納税が干渉しないケース
A77: 3780000 | B77: 3400000 | C77: 20 | E77: 20 | F77: 100400 | G77: 100400
D79: 以上の検算で、収入が低い方の限度額でこの現象に出会った人は、再計算後からの余裕が少ないが
D80: 収入が高い方の限度額で現象に出会った人は、再計算後より、最初の限度額のほうが近い。
A83: ③住民税からの控除（特例分） = （ふるさと納税額－2,000円）×（100％－10％（基本分）－所得税の税率）
A84: この式が住民税の20%を越える越え方に二通りある。
A85: 1)一つは境界付近の所得の低いゾーンで、寄付を上げて行くとまず所得税率が下がり、それでも20%を越えなくて、寄付額を増やすとリミットにぶつかるタイプ。
A86: 2)もう一つは境界付近の所得の高いゾーンで、寄付を上げて行っても所得税率は高いままで、寄付を上げて行くと所得税率が下がることで控除額が一気に20%を越えるタイプ。
A88: 1)のタイプは下の所得税で全部計算できるので、V2.1の二回計算タイプで限度額が計算できる。
A89: 2)のタイプは所得税率が高いままリミットを迎えるので、V2.1の二回計算タイプでは限度額が計算できない。
A90: 対策はもう一度考える
A92: 精密にやるには、ふるさと納税額を漸増させて、住民税の20%を超えたところでやめるしかない。
A93: これをVBAで書いて実装した。

Sheet Sheet2
